bitfinex-derivatives/quotes_SOLF0:USTF0_20250415
["timestamp","ask_amount","ask_price","bid_price","bid_amount"]
[1744746221679,7.87164097,127.89,127.87,7.821]
[1744746223082,0.05154097,127.89,127.87,7.821]
[1744746223279,0.05154097,127.89,127.88,7.8204]
[1744746239694,2.1408,127.96,127.87,8.52910271]
[1744746239897,10.65490271,127.97,127.92,8.52910271]
[1744746240093,7.816,127.96,127.93,30.72]
[1744746240596,7.8542902,127.96,127.93,30.77458656]
[1744746240798,7.8542902,127.96,127.93,38.59168656]
[1744746241101,7.8163,127.95,127.93,38.59168656]
[1744746241491,7.8541902,127.96,127.93,38.59168656]
[1744746241996,7.8164,127.95,127.93,30.77458656]
[1744746242201,16.34550271,127.95,127.93,30.77458656]
[1744746243699,7.8167,127.94,127.93,30.77458656]
[1744746245504,7.8181,127.92,127.9,30.7]
[1744746245702,16.34720271,127.92,127.9,30.7]
[1744746246401,16.40309028,127.92,127.9,30.75382352]
[1744746247604,7.8186,127.91,127.9,30.75382352]
[1744746248202,16.34770271,127.91,127.9,30.75382352]
[1744746248402,16.34770271,127.91,127.9,0.05382352]
[1744746249607,8.52910271,127.91,127.84,32.8432]
[1744746249902,8.52910271,127.88,127.84,32.8432]
[1744746250206,16.34980271,127.88,127.86,7.8214]
[1744746250707,16.40856009,127.88,127.86,7.87353669]
[1744746250903,7.87945738,127.88,127.86,7.87353669]
[1744746252808,8.52910271,127.92,127.87,39.18910271]
[1744746253511,7.8189,127.91,127.89,7.8195]
[1744746253914,7.87509417,127.91,127.89,7.87468584]
[1744746254413,0.05619417,127.91,127.9,7.8192]
[1744746255609,0.05619417,127.91,127.9,38.4792]
[1744746259217,7.87479417,127.91,127.9,30.66]
[1744746261220,0.05619417,127.91,127.9,30.66]
[1744746261719,0.05619417,127.91,127.9,38.4792]
[1744746263321,0.05619417,127.91,127.9,47.00830271]
[1744746267623,7.8165,127.95,127.93,7.8174]
[1744746267917,2.0902,127.98,127.93,39.18910271]
[1744746267918,10.61930271,127.98,127.93,39.18910271]
[1744746268121,7.8158,127.96,127.94,7.8165]
[1744746268625,0.03174873,127.96,127.94,0.05212558]
[1744746268813,0.03174873,127.96,127.95,7.8161]
[1744746269821,0.03174873,127.96,127.94,7.86862558]
[1744746270628,8.52910271,127.95,127.9,30.66]
[1744746270822,8.52910271,127.93,127.9,30.66]
[1744746271121,16.34770271,127.92,127.9,30.66]
[1744746271618,7.8186,127.91,127.9,30.66]
[1744746271813,7.8186,127.91,127.9,30.71162868]
[1744746276428,16.34770271,127.91,127.9,0.05162868]
[1744746277426,16.39722293,127.92,127.9,0.05162868]
[1744746277628,8.57892293,127.92,127.9,30.71162868]
[1744746277822,7.8186,127.91,127.9,30.71162868]
[1744746278017,16.34770271,127.91,127.9,30.71162868]
[1744746281325,8.57892293,127.92,127.9,30.71162868]
[1744746283225,7.8186,127.91,127.9,30.71162868]
[1744746285727,16.39712293,127.92,127.9,30.71162868]
[1744746286726,7.8186,127.91,127.9,30.71162868]
[1744746289431,16.39712293,127.92,127.9,30.71162868]
[1744746291633,7.8186,127.91,127.9,30.71162868]
[1744746291930,0.04982022,127.92,127.9,39.24073139]
[1744746292235,8.52910271,127.99,127.91,8.52910271]
[1744746292432,7.8151,127.97,127.95,7.8158]
[1744746292632,7.8151,127.97,127.95,38.4358]
[1744746293034,7.84915409,127.97,127.95,38.49177854]
[1744746293535,7.84915409,127.97,127.95,30.67597854]
[1744746295136,16.34460271,127.96,127.95,0.05597854]
[1744746296229,7.8174,127.93,127.92,30.62]
[1744746297932,7.818,127.92,127.91,0.05776488]
[1744746298134,16.34710271,127.92,127.91,0.05776488]
[1744746298333,7.818,127.92,127.91,0.05776488]
[1744746299637,16.34680271,127.93,127.91,0.05776488]
[1744746300436,16.34710271,127.92,127.91,0.05776488]
[1744746300732,8.52910271,127.92,127.88,30.62]
[1744746300936,8.52910271,127.91,127.88,30.62]
[1744746301138,8.52910271,127.92,127.88,30.62]
[1744746301332,7.8185,127.92,127.88,39.14910271]
[1744746301533,8.52910271,127.93,127.88,39.14910271]
[1744746301733,8.52910271,127.93,127.89,7.87278554]
[1744746301941,0.051374,127.92,127.89,7.87278554]
[1744746302239,0.051374,127.92,127.89,0.05338554]
[1744746302440,0.051374,127.92,127.9,7.8189]
[1744746303737,0.051374,127.92,127.91,38.4386]
[1744746304740,0.051374,127.92,127.91,30.62]
[1744746305739,0.051374,127.92,127.91,38.4386]
[1744746306139,0.051374,127.92,127.91,30.62]
[1744746306336,7.869374,127.92,127.91,30.62]
[1744746308234,16.39847671,127.92,127.91,30.62]
[1744746308433,7.8192,127.9,127.89,0.05338554]
[1744746308637,8.52910271,127.91,127.89,0.05338554]
[1744746309338,7.8192,127.9,127.89,0.05338554]
[1744746311840,16.34800271,127.91,127.89,7.87318554]
[1744746312540,7.8192,127.9,127.89,0.05338554]
[1744746315949,7.8216,127.86,127.85,30.58]
[1744746316246,46.2153,127.93,127.85,30.58]
[1744746316247,8.52910271,127.87,127.85,30.58]
[1744746317048,8.58307107,127.87,127.85,30.63676457]
[1744746317344,7.8216,127.86,127.85,30.63676457]
[1744746320654,16.35070271,127.86,127.85,30.63676457]
[1744746322150,7.8233,127.84,127.79,564.9303]
[1744746322352,8.52910271,127.8,127.78,30.58]
[1744746322651,8.52910271,127.8,127.79,30.58]
[1744746322853,16.35440271,127.8,127.79,30.58]
[1744746324859,8.52910271,127.8,127.79,30.58]
[1744746325161,0.05629721,127.81,127.79,30.58]
[1744746325359,0.05629721,127.81,127.8,7.8253]
[1744746325864,0.05629721,127.81,127.8,16.35440271]
[1744746326663,0.05629721,127.81,127.8,7.8253]
[1744746339387,8.58539992,127.81,127.78,0.05569938]
[1744746339683,8.52910271,127.79,127.78,0.05569938]
[1744746339883,16.35500271,127.79,127.78,0.05569938]
[1744746340083,8.52910271,127.79,127.74,7.8286]
[1744746340387,8.52910271,127.76,127.74,7.8286]
[1744746340577,8.52910271,127.77,127.74,7.8286]
[1744746340778,8.52910271,127.77,127.72,39.12910271]
[1744746340779,8.52910271,127.75,127.72,30.6]
[1744746341078,8.52910271,127.74,127.72,30.65510534]
[1744746341983,16.35830271,127.74,127.72,30.65510534]
[1744746342182,8.5796832,127.75,127.72,30.65510534]
[1744746342379,8.5796832,127.75,127.72,38.48480534]
[1744746342578,0.05058049,127.75,127.72,30.65510534]
[1744746342778,46.2437,127.86,127.74,8.52910271]
[1744746342978,7.8244,127.82,127.78,8.52910271]
[1744746343183,4.1081,127.84,127.8,8.52910271]
[1744746343484,12.63720271,127.84,127.79,8.52910271]
[1744746343678,8.52910271,127.82,127.78,39.12910271]
[1744746343879,0.04976776,127.81,127.79,0.05319862]
[1744746344082,0.04976776,127.81,127.79,7.87879862]
[1744746344284,0.04976776,127.81,127.79,0.05319862]
[1744746344687,8.57887047,127.81,127.79,0.05319862]
[1744746344986,7.87476776,127.81,127.79,0.05319862]
[1744746345887,7.8253,127.8,127.79,0.05319862]
[1744746349792,7.8277,127.77,127.75,30.56]
[1744746349993,13.32051442,127.8,127.75,30.56]
[1744746350591,2.1677,127.79,127.75,30.56]
[1744746350791,0.05035354,127.78,127.76,0.05798332]
[1744746351282,7.8271,127.77,127.76,0.05798332]
[1744746351890,7.8296,127.73,127.72,30.56]
[1744746352284,13.32051442,127.78,127.72,30.56]
[1744746352891,0.05703635,127.76,127.74,0.05838914]
[1744746353481,7.8284,127.75,127.74,0.05838914]
[1744746353789,0.05703635,127.76,127.74,0.05838914]
[1744746353986,0.05703635,127.76,127.75,30.56]
[1744746354894,0.05703635,127.76,127.75,38.3884]
[1744746355894,0.05703635,127.76,127.75,30.56]
[1744746356599,7.8284,127.75,127.74,0.05838914]
[1744746359894,0.05703635,127.76,127.74,0.05838914]
[1744746360093,0.05703635,127.76,127.75,30.56]
[1744746360399,2.0151,127.82,127.76,7.8275]
[1744746361098,7.8263,127.79,127.76,7.8275]
[1744746361301,7.88648789,127.79,127.77,7.827]
[1744746362194,0.06018789,127.79,127.77,7.827]
[1744746362400,0.06018789,127.79,127.76,13.37734587]
[1744746362600,0.06018789,127.79,127.76,0.05683145]
[1744746365304,7.8265,127.78,127.76,0.05683145]
[1744746365508,0.06018789,127.79,127.76,0.05683145]
[1744746367205,13.32051442,127.78,127.76,0.05683145]
[1744746367413,15.34761442,127.78,127.71,30.56]
[1744746367711,7.8294,127.74,127.71,38.3906]
[1744746368304,0.05883785,127.74,127.72,7.8301]
[1744746369111,7.88803785,127.74,127.72,7.8301]
[1744746369410,0.05883785,127.74,127.71,30.61319591]
[1744746370607,0.05883785,127.74,127.73,7.8296]
[1744746377019,7.88783785,127.74,127.72,7.8299]
[1744746379020,0.05883785,127.74,127.71,34.87299591]
[1744746381621,0.05883785,127.74,127.73,7.8296]
[1744746382620,43.86051442,127.84,127.78,7.8263]
[1744746383013,7.8257,127.8,127.78,7.8263]
[1744746383622,7.88394512,127.8,127.78,7.87758028]
[1744746384422,7.8259,127.79,127.78,0.05128028]
[1744746388327,7.88394512,127.8,127.78,7.87778028]
[1744746388625,0.05824512,127.8,127.78,0.05128028]
[1744746389224,7.88384512,127.8,127.78,7.87748028]
[1744746389426,0.05824512,127.8,127.78,0.05128028]
[1744746389929,0.05824512,127.8,127.78,7.87728028]
[1744746390528,7.88374512,127.8,127.78,7.87728028]
[1744746390830,0.05824512,127.8,127.78,0.05128028]
[1744746391128,7.8259,127.79,127.78,0.05128028]
[1744746391729,7.88394512,127.8,127.78,0.05128028]
[1744746392028,0.05824512,127.8,127.78,0.05128028]
[1744746392429,0.05824512,127.8,127.78,7.87778028]
[1744746393333,7.88384512,127.8,127.78,7.87778028]
[1744746393526,0.05824512,127.8,127.79,7.8259]
[1744746396931,7.8232,127.84,127.79,13.32051442]
[1744746397124,7.8232,127.84,127.8,30.52]
[1744746397628,7.8235,127.83,127.81,7.8244]
[1744746398031,0.05161851,127.83,127.81,7.87722883]
[1744746398326,0.05161851,127.83,127.82,7.8241]
[1744746400529,7.87511851,127.83,127.81,23.34524325]
[1744746400826,0.05161851,127.83,127.81,15.52094325]
[1744746401036,0.05161851,127.83,127.82,7.8241]
[1744746403133,0.05161851,127.83,127.81,0.05282883]
[1744746403736,7.8241,127.82,127.81,0.05282883]
[1744746404937,7.8241,127.82,127.69,7.827]
[1744746404938,21.14051442,127.82,127.73,30.52]
[1744746405136,13.32051442,127.79,127.73,30.52]
[1744746405336,13.32051442,127.79,127.74,7.8287]
[1744746405635,13.32051442,127.79,127.73,30.52]
[1744746406036,7.8281,127.76,127.75,0.05539099]
[1744746413646,7.88544236,127.77,127.75,0.05539099]
[1744746414946,7.88544236,127.77,127.75,7.88369099]
[1744746415747,7.8278,127.76,127.75,0.05539099]
[1744746422044,7.8278,127.76,127.75,9.099e-05]
[1744746422445,9.8461,127.76,127.75,9.099e-05]
[1744746422645,7.8313,127.71,127.68,7.8324]
[1744746422845,7.8313,127.71,127.67,17.45391442]
[1744746423248,7.8313,127.71,127.68,7.8322]
[1744746423751,7.88329335,127.71,127.68,7.88752589]
[1744746424154,7.88329335,127.71,127.69,7.832]
[1744746424452,0.05199335,127.71,127.69,7.832]
[1744746424655,0.05199335,127.71,127.68,0.05532589]
[1744746424853,0.05199335,127.71,127.7,7.8314]
[1744746425753,2.0183,127.76,127.69,43.82051442]
[1744746426449,7.8293,127.74,127.71,7.8304]
[1744746426748,7.8293,127.74,127.71,7.88818631]
[1744746427050,7.87940901,127.74,127.71,7.88818631]
[1744746431457,7.8297,127.73,127.71,7.88818631]
[1744746432259,7.87930901,127.74,127.71,7.88818631]
[1744746434061,365.0,127.73,127.63,1.2576]
[1744746434261,13.32051442,127.64,127.51,87.32746123]
[1744746434460,13.32051442,127.64,127.53,13.32051442]
[1744746434461,43.82051442,127.64,127.53,13.32051442]
[1744746435052,7.8364,127.62,127.57,0.05553943]
[1744746435254,0.05810379,127.6,127.57,0.05553943]
[1744746435460,13.32051442,127.58,127.51,74.00694681]
[1744746435660,7.842,127.53,127.51,74.00694681]
[1744746435865,13.32051442,127.56,127.51,74.00694681]
[1744746436466,0.05391366,127.55,127.52,0.05698548]
[1744746436668,7.8419,127.53,127.52,0.05698548]
[1744746438163,0.05391366,127.55,127.46,2.0953]
[1744746438371,21.41309108,127.53,127.46,30.5]
[1744746438566,30.5,127.55,127.46,30.5]
[1744746439162,0.06023907,127.52,127.49,0.05971831]
[1744746439359,7.8438,127.5,127.49,0.05971831]
[1744746439965,7.8456,127.47,127.46,30.5]
[1744746440373,7.8469,127.45,127.43,30.5]
[1744746440770,1.9902,127.51,127.43,30.5]
[1744746440967,0.05087807,127.48,127.46,0.0595817]
[1744746441568,7.8456,127.47,127.46,0.0595817]
[1744746441972,7.8456,127.47,127.46,30.5595817]
[1744746443373,7.89587807,127.48,127.46,30.5595817]
[1744746443977,7.8456,127.47,127.46,30.5595817]
[1744746445379,0.05087807,127.48,127.46,30.5595817]
[1744746446873,7.8456,127.47,127.46,30.5595817]
[1744746447072,7.8456,127.47,127.46,0.0595817]
[1744746447277,0.05087807,127.48,127.43,30.52]
[1744746447477,7.8474,127.44,127.43,30.52]
[1744746447884,21.41309108,127.48,127.37,21.41309108]
[1744746448077,2.1207,127.47,127.39,30.52]
[1744746448379,0.05041418,127.44,127.41,0.05528094]
[1744746448580,0.05041418,127.44,127.42,7.8483]
[1744746448782,0.05041418,127.44,127.43,30.52]
[1744746449183,0.05041418,127.44,127.42,4.2013]
[1744746449983,0.05041418,127.44,127.43,30.52]
[1744746450284,0.05041418,127.44,127.43,38.368]
[1744746450479,30.52,127.49,127.43,30.52]
[1744746450777,30.52,127.49,127.43,38.3679]
[1744746450981,30.52,127.49,127.43,30.52]
[1744746451484,7.8462,127.46,127.45,0.04941619]
[1744746453781,7.90343089,127.47,127.45,0.04941619]
[1744746454686,0.05753089,127.47,127.45,0.04941619]
[1744746454986,7.8435,127.51,127.46,30.52]
[1744746455187,21.41309108,127.54,127.46,32.5327]
[1744746455684,21.41309108,127.54,127.47,7.8453]
[1744746455885,0.05434011,127.52,127.49,0.05154735]
[1744746456687,7.8437,127.5,127.49,0.05154735]
[1744746457981,7.8437,127.5,127.39,37.11379108]
[1744746457982,21.41309108,127.5,127.43,30.52]
[1744746458187,51.93309108,127.5,127.43,30.52]
[1744746458589,2.0302,127.49,127.43,30.52]
[1744746458779,0.05892131,127.47,127.45,0.0564561]
[1744746458982,7.8462,127.46,127.45,0.0564561]
[1744746461495,7.90482131,127.47,127.45,0.0564561]
[1744746461994,0.05892131,127.47,127.45,0.0564561]
[1744746462192,0.05892131,127.47,127.45,7.9027561]
[1744746462393,0.05892131,127.47,127.45,0.0564561]
[1744746462891,7.90492131,127.47,127.45,0.0564561]
[1744746463394,7.8462,127.46,127.45,0.0564561]
[1744746463589,0.05892131,127.47,127.45,0.0564561]
[1744746463790,0.05892131,127.47,127.46,30.54]
[1744746463990,7.8434,127.51,127.48,7.8447]
[1744746464893,7.8970552,127.51,127.48,7.9026215]
[1744746465094,7.8970552,127.51,127.48,0.0579215]
[1744746467090,0.0536552,127.51,127.49,30.54]
[1744746468291,0.0536552,127.51,127.48,0.0579215]
[1744746468486,13.39803724,127.5,127.48,0.0579215]
[1744746468789,7.8463,127.46,127.43,30.52]
[1744746469301,7.8471,127.45,127.43,30.52]
[1744746469488,13.39803724,127.48,127.43,30.52]
[1744746469688,0.05511045,127.47,127.44,0.05327614]
[1744746470694,7.8473,127.45,127.44,7.614e-05]
[1744746481514,0.05511045,127.47,127.44,7.614e-05]
[1744746482113,7.90101045,127.47,127.44,7.84717614]
[1744746483616,7.90101045,127.47,127.45,7.8467]
[1744746483923,0.05511045,127.47,127.46,30.52]
[1744746484614,0.05511045,127.47,127.46,38.3662]
[1744746484819,0.05511045,127.47,127.46,30.52]
[1744746485018,7.90071045,127.47,127.46,30.52]
[1744746485615,0.05511045,127.47,127.46,30.52]
[1744746486112,0.05511045,127.47,127.46,38.3662]
[1744746486317,0.05511045,127.47,127.46,30.52]
[1744746487317,0.05511045,127.47,127.46,38.3662]
[1744746487516,32.6863,127.53,127.46,30.52]
[1744746487716,2.1663,127.53,127.46,30.52]
[1744746487907,7.844,127.5,127.48,7.8449]
[1744746488112,53.96011595,127.56,127.49,30.52]
[1744746488316,7.8432,127.51,127.49,30.52]
[1744746488512,7.89756885,127.51,127.49,30.57763465]
[1744746489319,0.05436885,127.51,127.49,30.57763465]
[1744746489818,7.8437,127.5,127.49,30.57763465]
[1744746491015,7.8437,127.5,127.49,0.05763465]
[1744746494321,7.89776885,127.51,127.49,0.05763465]
[1744746494620,0.05436885,127.51,127.49,0.05763465]
[1744746494821,0.05436885,127.51,127.49,30.57763465]
[1744746495722,0.05436885,127.51,127.5,7.8437]
[1744746497216,0.05436885,127.51,127.49,30.57763465]
[1744746497822,0.05436885,127.51,127.5,7.8437]
[1744746498819,7.8437,127.5,127.49,0.05763465]
[1744746499023,13.38864777,127.5,127.45,2.0387]
[1744746499220,13.38864777,127.48,127.45,2.0387]
[1744746499519,13.38864777,127.48,127.43,38.3678]
[1744746500020,7.8465,127.46,127.44,7.90083387]
[1744746500820,7.90212055,127.47,127.45,7.8468]
[1744746501022,7.90212055,127.47,127.44,0.05343387]
[1744746501325,0.05642055,127.47,127.44,0.05343387]
[1744746502023,7.8466,127.46,127.44,0.05343387]
[1744746502323,0.05642055,127.47,127.44,0.05343387]
[1744746503025,13.38864777,127.46,127.44,0.05343387]
[1744746503823,7.8468,127.45,127.44,0.05343387]
[1744746504520,7.8484,127.43,127.4,32.6059]
[1744746504721,7.8484,127.43,127.4,40.4554]
[1744746505024,7.8477,127.44,127.4,32.6059]
[1744746505226,7.8477,127.44,127.41,7.8492]
[1744746505525,0.05328635,127.44,127.41,0.05466216]
[1744746505925,0.05328635,127.44,127.42,7.8483]
[1744746506226,0.05328635,127.44,127.41,0.05466216]
[1744746506524,7.8481,127.43,127.41,0.05466216]
[1744746507324,7.8481,127.43,127.41,7.90386216]
[1744746508527,7.90098635,127.44,127.41,7.90386216]
[1744746508932,0.05328635,127.44,127.41,0.05466216]
[1744746509628,0.05328635,127.44,127.42,7.8483]
[1744746510723,0.05328635,127.44,127.41,0.05466216]
[1744746512230,0.05328635,127.44,127.43,7.848]
[1744746512428,0.05328635,127.44,127.43,38.368]
[1744746513831,46.07834777,127.5,127.45,7.8462]
[1744746514031,7.8453,127.48,127.45,7.8462]
[1744746514433,7.8453,127.48,127.46,7.8462]
[1744746514732,7.8446,127.49,127.43,30.52]
[1744746514932,0.05696449,127.47,127.45,0.05346248]
[1744746515131,0.05696449,127.47,127.46,7.8458]
[1744746516034,0.05696449,127.47,127.45,0.05346248]
[1744746516632,0.05696449,127.47,127.45,7.89996248]
[1744746516930,0.05696449,127.47,127.45,0.05346248]
[1744746517132,0.05696449,127.47,127.46,30.52]
[1744746517333,0.05696449,127.47,127.46,38.3662]
[1744746520231,0.05696449,127.47,127.45,7.89996248]
[1744746520938,0.05696449,127.47,127.45,0.05346248]
[1744746522135,0.05696449,127.47,127.45,7.89996248]
[1744746522439,7.90266449,127.47,127.45,7.89996248]
[1744746522633,0.05696449,127.47,127.45,7.89996248]
[1744746523136,7.90256449,127.47,127.45,7.89996248]
[1744746523538,0.05696449,127.47,127.46,7.8462]
[1744746524138,0.05696449,127.47,127.46,38.3662]
[1744746524340,0.05696449,127.47,127.46,30.52]
[1744746525640,7.90256449,127.47,127.46,30.52]
[1744746526541,7.90256449,127.47,127.45,7.89996248]
[1744746527540,7.8462,127.46,127.45,0.05346248]
[1744746528340,16.41691099,127.46,127.45,0.05346248]
[1744746528643,8.57071099,127.46,127.4,9.9082]
[1744746528835,8.57071099,127.44,127.4,9.9082]
[1744746529030,15.6962,127.43,127.3,15.7121]
[1744746529238,13.41203104,127.41,127.31,31.94159002]
[1744746529431,13.41203104,127.41,127.32,1.44159002]
[1744746529633,0.04958028,127.38,127.35,0.04940961]
[1744746529842,0.04958028,127.38,127.36,7.8521]
[1744746531142,7.90068028,127.38,127.36,7.8521]
[1744746532144,0.04958028,127.38,127.35,30.54940961]
[1744746532445,0.04958028,127.38,127.35,43.96144065]
[1744746532634,7.8499,127.41,127.36,3.9995]
[1744746532839,7.8499,127.41,127.38,7.8507]
[1744746533034,15.46363104,127.43,127.38,38.3707]
[1744746533844,0.05801988,127.42,127.39,0.05195769]
[1744746534143,7.8499,127.4,127.39,0.05195769]
[1744746538647,0.05801988,127.42,127.4,7.8494]
[1744746538847,0.05801988,127.42,127.39,0.05195769]
[1744746539547,7.90671988,127.42,127.4,7.8496]
[1744746539747,7.90671988,127.42,127.39,0.05195769]
[1744746540147,7.90671988,127.42,127.4,7.8496]
[1744746540550,0.05801988,127.42,127.39,0.05195769]
[1744746540940,0.05801988,127.42,127.4,7.8499]
[1744746541240,0.05801988,127.42,127.41,30.52]
[1744746541446,13.41203104,127.51,127.41,30.52]
[1744746541647,7.8446,127.49,127.43,13.41203104]
[1744746541848,7.8446,127.49,127.44,30.52]
[1744746542043,7.8446,127.49,127.46,7.8456]
[1744746542247,13.41203104,127.51,127.46,7.8456]
[1744746542548,0.05151703,127.49,127.46,7.89973458]
[1744746542748,0.05151703,127.49,127.47,7.8455]
[1744746542954,0.05151703,127.49,127.46,0.05413458]
[1744746543350,7.89611703,127.49,127.46,7.90003458]
[1744746543750,7.8456,127.47,127.46,0.05413458]
[1744746544047,0.05151703,127.49,127.46,0.05413458]
[1744746544449,7.8449,127.48,127.46,0.05413458]
[1744746545150,7.8456,127.47,127.46,0.05413458]
[1744746545350,21.25763104,127.47,127.46,0.05413458]
[1744746545951,7.8456,127.47,127.46,0.05413458]
[1744746548947,7.8452,127.48,127.46,0.05413458]
[1744746549651,0.05151703,127.49,127.46,0.05413458]
[1744746549851,13.46354807,127.49,127.46,0.05413458]
[1744746550251,7.8456,127.47,127.46,0.05413458]
[1744746550553,13.46354807,127.49,127.46,0.05413458]
[1744746550852,7.8449,127.48,127.46,0.05413458]
[1744746551347,7.8456,127.47,127.46,0.05413458]
[1744746552652,7.8452,127.48,127.46,0.05413458]
[1744746552853,0.05151703,127.49,127.46,0.05413458]
[1744746553054,0.05151703,127.49,127.48,7.8449]
[1744746558156,0.05151703,127.49,127.47,42.4863]
[1744746558358,7.89581703,127.49,127.47,42.4863]
[1744746558557,0.05151703,127.49,127.47,42.4863]
[1744746559461,0.05151703,127.49,127.47,38.3652]
[1744746559663,0.05151703,127.49,127.47,30.52]
[1744746560060,13.46354807,127.49,127.46,0.05413458]
[1744746560463,7.8449,127.48,127.46,0.05413458]
[1744746560666,13.46354807,127.49,127.46,0.05413458]
[1744746560966,7.8456,127.47,127.46,0.05413458]
[1744746561670,21.25763104,127.47,127.46,0.05413458]
[1744746563474,13.41203104,127.47,127.41,30.48]
[1744746563675,13.41203104,127.45,127.38,30.48]
[1744746563875,13.41203104,127.43,127.38,30.48]
[1744746564270,13.41203104,127.43,127.39,7.8501]
[1744746564472,13.47221372,127.43,127.4,2.6346938]
[1744746564771,7.8486,127.42,127.4,2.6346938]
[1744746564976,0.06018268,127.43,127.4,2.6346938]
[1744746565776,7.90848268,127.43,127.4,2.6346938]
[1744746566271,0.06018268,127.43,127.4,2.6346938]
[1744746567075,7.8487,127.42,127.4,10.4842938]
[1744746567277,0.06018268,127.43,127.41,30.5]
[1744746568077,0.06018268,127.43,127.42,7.8486]
[1744746569073,0.06018268,127.43,127.41,38.3489]
[1744746571480,7.90858268,127.43,127.41,30.5]
[1744746571981,7.90858268,127.43,127.41,38.3492]
[1744746572181,0.06018268,127.43,127.41,30.5]
[1744746572680,7.90848268,127.43,127.41,38.3488]
[1744746574180,0.06018268,127.43,127.41,38.3488]
[1744746574482,0.06018268,127.43,127.42,7.8486]
[1744746576981,1.9901,127.48,127.41,30.5]
[1744746577282,1.9901,127.48,127.42,2.1813]
[1744746577480,7.8459,127.47,127.42,2.1813]
[1744746577680,30.5,127.49,127.42,4.3461]
[1744746577882,0.05749757,127.47,127.44,0.05350557]
[1744746578186,0.05749757,127.47,127.44,30.55350557]
[1744746578384,30.5,127.52,127.44,30.55350557]
[1744746578584,30.5,127.52,127.45,15.59303104]
[1744746578980,7.844,127.5,127.47,7.8451]
[1744746579279,7.844,127.5,127.45,15.59303104]
[1744746579479,0.04950067,127.49,127.47,7.845]
[1744746579975,0.04950067,127.49,127.46,0.05753106]
[1744746580781,0.04950067,127.49,127.47,30.5]
[1744746580982,0.04950067,127.49,127.47,32.5743]
[1744746581183,0.04950067,127.49,127.48,7.8449]
[1744746590891,7.8456,127.47,127.46,0.05753106]
[1744746591190,13.41203104,127.47,127.32,43.87203104]
[1744746591488,13.41203104,127.43,127.35,4.1439]
[1744746591686,7.8488,127.42,127.37,30.46]
[1744746592190,0.05141651,127.42,127.41,30.46]
[1744746592789,0.05141651,127.42,127.41,38.3093]
[1744746593091,0.05141651,127.42,127.41,30.46]
[1744746593794,580.344,127.53,127.41,30.46]
[1744746593795,13.41203104,127.49,127.41,30.46]
[1744746594090,13.41203104,127.49,127.41,32.4591]
[1744746594398,7.8458,127.47,127.42,7.8486]
[1744746594790,0.05323698,127.46,127.43,0.05453855]
[1744746594992,0.05323698,127.46,127.44,30.48]
[1744746595294,7.89973698,127.46,127.44,30.48]
[1744746595795,0.05323698,127.46,127.44,30.48]
[1744746596294,7.89973698,127.46,127.44,30.48]
[1744746596795,7.89943698,127.46,127.44,30.48]
[1744746597190,0.05323698,127.46,127.44,30.48]
[1744746598695,7.8468,127.45,127.44,30.48]
[1744746599989,7.89993698,127.46,127.44,30.48]
[1744746600193,0.05323698,127.46,127.43,0.05453855]
[1744746600389,365.0,127.59,127.45,13.41203104]
[1744746600694,252.04417855,127.67,127.46,3.42056867]
[1744746600695,229.1001742,127.61,127.46,3.42056867]
[1744746600896,13.41203104,127.55,127.52,7.8421]
[1744746601095,13.41203104,127.55,127.5,30.48]
[1744746601401,0.0509087,127.54,127.51,0.05650413]
[1744746601594,21.25433104,127.53,127.51,0.05650413]
[1744746601794,13.41203104,127.53,127.46,1.9795]
[1744746602000,13.41203104,127.51,127.46,9.8253]
[1744746602201,13.41203104,127.51,127.46,1.9795]
[1744746602401,13.41203104,127.49,127.44,30.48]
[1744746602797,0.05778815,127.48,127.42,4.0681]
[1744746602999,0.05778815,127.48,127.4,2.58256]
[1744746603000,13.41203104,127.43,127.4,2.58256]
[1744746603295,21.26063104,127.43,127.4,2.58256]
[1744746603498,13.41203104,127.45,127.4,2.58256]
[1744746603701,21.25923104,127.45,127.4,10.43236]
[1744746603903,13.41203104,127.45,127.4,2.58256]
[1744746604097,13.41203104,127.43,127.41,0.05299353]
[1744746604810,7.8486,127.42,127.41,0.05299353]
[1744746605303,38.3281,127.43,127.41,0.05299353]
[1744746605605,30.48,127.51,127.42,30.48]
[1744746605802,21.45357128,127.48,127.42,30.48]